bitfinex-derivatives/quotes_SOLF0:USTF0_20241215
["timestamp","ask_amount","ask_price","bid_price","bid_amount"]
[1734268163018,4.4466,218.72,218.68,5.26865245]
[1734268163218,4.4466,218.72,218.66,2.2871]
[1734268163425,4.4466,218.72,218.67,8.83894407]
[1734268163616,4.4466,218.72,218.68,5.26921047]
[1734268163816,4.4466,218.72,218.66,2.2871]
[1734268164017,4.4466,218.72,218.67,17.26886134]
[1734268164224,4.4466,218.72,218.68,8.83850677]
[1734268164522,4.4466,218.72,218.69,5.2689716]
[1734268164717,2.2867,218.71,218.66,2.2871]
[1734268164917,2.2867,218.71,218.67,17.26836989]
[1734268165221,2.2867,218.71,218.66,2.2871]
[1734268165222,2.2867,218.71,218.68,8.83825402]
[1734268165426,2.2867,218.71,218.69,5.26882242]
[1734268165722,2.2867,218.71,218.66,2.2871]
[1734268165923,2.2867,218.71,218.67,8.8385648]
[1734268166119,2.2867,218.71,218.66,2.2871]
[1734268166426,2.2867,218.71,218.67,8.83856316]
[1734268166622,2.16,218.72,218.68,8.83855526]
[1734268166820,4.4466,218.72,218.69,5.26900671]
[1734268167016,4.4466,218.72,218.67,2.2871]
[1734268167217,4.4466,218.72,218.68,8.83839121]
[1734268167426,2.16,218.72,218.69,8.83839121]
[1734268167627,2.16,218.72,218.63,1.4896]
[1734268167819,2.16,218.72,218.64,25.58775121]
[1734268168028,2.16,218.72,218.65,25.58775121]
[1734268168218,2.16,218.74,218.66,25.58775121]
[1734268168421,2.16,218.74,218.67,22.98003594]
[1734268168626,2.16,218.74,218.68,8.83847536]
[1734268168823,2.16,218.74,218.69,8.83847536]
[1734268169022,2.16,218.74,218.66,2.2872]
[1734268169218,2.16,218.74,218.67,22.9811188]
[1734268169427,2.2866,218.72,218.68,5.26921466]
[1734268169630,2.2866,218.72,218.69,3.5698628]
[1734268169818,2.2866,218.72,218.66,2.2872]
[1734268170025,2.2866,218.72,218.67,22.98228682]
[1734268170224,2.2866,218.72,218.68,8.83934108]
[1734268170523,2.16,218.74,218.69,8.83934108]
[1734268170719,2.16,218.74,218.7,3.56961641]
[1734268171022,2.16,218.74,218.68,2.287]
[1734268171332,2.16,218.74,218.69,8.83879197]
[1734268171523,2.2864,218.73,218.7,8.83879197]
[1734268171727,2.2864,218.73,218.68,2.287]
[1734268172026,2.2864,218.73,218.69,8.8386674]
[1734268172222,2.2864,218.73,218.7,8.8386674]
[1734268172422,2.2864,218.73,218.68,2.287]
[1734268172721,2.2864,218.73,218.69,17.26902727]
[1734268172918,2.16,218.75,218.7,8.83855929]
[1734268173233,2.16,218.75,218.71,8.83855929]
[1734268173424,2.286,218.77,218.71,2.2866]
[1734268173619,4.446,218.77,218.72,8.83661814]
[1734268173826,4.446,218.77,218.73,8.83493878]
[1734268174122,4.446,218.77,218.74,5.26691692]
[1734268174327,4.446,218.77,218.71,2.2866]
[1734268174523,4.446,218.77,218.72,17.2619737]
[1734268174824,4.446,218.77,218.73,8.83492712]
[1734268175024,4.446,218.77,218.74,5.26690411]
[1734268175226,4.446,218.77,218.71,2.2866]
[1734268175524,2.2861,218.76,218.72,17.25918583]
[1734268175725,2.2861,218.76,218.73,8.8334917]
[1734268175920,2.2861,218.76,218.7,2.2868]
[1734268176124,2.2861,218.76,218.71,25.57075664]
[1734268176422,2.2861,218.76,218.72,17.25700038]
[1734268176625,2.2861,218.76,218.73,8.83242678]
[1734268176827,2.2861,218.76,218.74,5.2653585]
[1734268177124,2.2861,218.76,218.7,2.2868]
[1734268177325,2.2861,218.76,218.71,25.55886168]
[1734268177524,2.2861,218.76,218.72,17.24953397]
[1734268177721,2.2861,218.76,218.73,8.82855115]
[1734268177918,2.2861,218.76,218.74,5.26311426]
[1734268178126,2.2861,218.76,218.7,2.2868]
[1734268178326,2.2861,218.76,218.71,25.55573896]
[1734268178523,2.2861,218.76,218.72,17.24735254]
[1734268178731,2.2861,218.76,218.73,8.82744855]
[1734268178924,2.2861,218.76,218.74,5.26243999]
[1734268179226,2.2861,218.76,218.7,2.2868]
[1734268179426,2.16,218.77,218.71,14.53046904]
[1734268179621,2.2862,218.75,218.72,8.82686263]
[1734268179826,2.2862,218.75,218.7,2.2868]
[1734268180025,2.2862,218.75,218.71,8.82903601]
[1734268180223,2.2862,218.75,218.72,8.82903601]
[1734268180525,2.2862,218.75,218.73,5.26312051]
[1734268180830,2.2862,218.75,218.7,2.2868]
[1734268181031,2.16,218.77,218.71,8.82824575]
[1734268181230,2.16,218.77,218.72,8.82718]
[1734268181422,2.16,218.77,218.73,5.26254731]
[1734268181624,2.2862,218.76,218.71,2.2866]
[1734268181822,2.2862,218.76,218.72,8.82656671]
[1734268182025,2.2862,218.76,218.73,5.26192941]
[1734268182230,2.2862,218.76,218.71,2.2866]
[1734268182431,2.2862,218.76,218.72,8.82666941]
[1734268182630,2.2862,218.76,218.73,8.82666941]
[1734268182827,2.16,218.78,218.67,2.16]
[1734268183028,2.16,218.78,218.68,30.09883999]
[1734268183326,2.16,218.8,218.69,25.55220074]
[1734268183528,2.2859,218.79,218.74,2.2863]
[1734268183827,2.2859,218.79,218.75,5.26166993]
[1734268184129,2.2859,218.79,218.74,2.2863]
[1734268184329,2.2859,218.79,218.75,8.82311786]
[1734268184525,2.2859,218.79,218.74,2.2863]
[1734268184723,2.2859,218.79,218.75,8.82425331]
[1734268184921,2.2859,218.79,218.74,2.2863]
[1734268185123,38.88192347,218.87,218.75,8.82424625]
[1734268185326,38.88192347,218.87,218.76,5.25990438]
[1734268185327,2.16,218.86,218.76,5.25990438]
[1734268185528,2.16,218.86,218.71,1.4425]
[1734268185731,2.16,218.86,218.72,27.7010541]
[1734268185926,2.16,218.86,218.73,22.93821323]
[1734268186129,2.16,218.86,218.74,17.23758078]
[1734268186431,2.16,218.86,218.75,8.8223897]
[1734268186632,2.16,218.85,218.76,8.8223897]
[1734268186824,2.16,218.85,218.77,5.25949442]
[1734268187027,2.2854,218.83,218.72,2.16]
[1734268187227,2.2854,218.83,218.73,25.54133555]
[1734268187428,2.2854,218.83,218.74,25.54133555]
[1734268187731,2.2854,218.83,218.75,17.23732422]
[1734268187931,2.2854,218.83,218.76,8.82256156]
[1734268188132,2.2854,218.83,218.77,8.8217735]
[1734268188329,2.2854,218.83,218.78,8.8217735]
[1734268188531,2.2854,218.83,218.77,2.286]
[1734268188729,2.16,218.85,218.72,2.16]
[1734268188927,2.16,218.85,218.74,2.2863]
[1734268189134,2.16,218.85,218.75,17.23525662]
[1734268189337,2.16,218.85,218.76,8.82118605]
[1734268189537,2.16,218.85,218.77,5.25879405]
[1734268189731,2.16,218.85,218.74,2.2863]
[1734268189933,2.16,218.85,218.75,17.24098631]
[1734268190236,2.16,218.85,218.76,8.82413943]
[1734268190430,2.16,218.85,218.77,5.2605293]
[1734268190630,2.16,218.85,218.74,2.2863]
[1734268190935,2.16,218.85,218.75,17.24114512]
[1734268191230,2.2858,218.8,218.76,8.82422112]
[1734268191429,2.16,218.8,218.77,8.82422112]
[1734268191629,2.16,218.8,218.7,3.016]
[1734268191927,2.16,218.8,218.71,14.12326294]
[1734268192130,2.16,218.8,218.72,8.82703934]
[1734268192327,2.16,218.8,218.73,8.82703934]
[1734268192531,2.16,218.8,218.7,3.016]
[1734268192737,2.16,218.8,218.71,17.25496484]
[1734268192936,2.16,218.8,218.72,8.83134785]
[1734268193133,2.16,218.8,218.73,5.26476062]
[1734268193328,2.16,218.8,218.7,8.44447405]
[1734268193637,2.2863,218.75,218.71,22.96940451]
[1734268193832,4.4463,218.75,218.72,8.83438635]
[1734268194040,4.4463,218.75,218.73,8.83438635]
[1734268194232,4.4463,218.75,218.7,8.44447405]
[1734268194429,4.4463,218.75,218.71,22.97082372]
[1734268194634,4.4463,218.75,218.72,8.83493219]
[1734268194929,4.4463,218.75,218.73,5.26689528]
[1734268195129,4.4463,218.75,218.7,8.44447405]
[1734268195332,4.4463,218.75,218.71,13.69414225]
[1734268195533,4.4463,218.75,218.72,3.56809037]
[1734268195733,4.4463,218.75,218.73,8.83506816]
[1734268196032,4.4463,218.75,218.7,8.44447405]
[1734268196228,4.4463,218.75,218.71,22.97022585]
[1734268196429,4.4463,218.75,218.72,8.83470225]
[1734268196633,2.2863,218.74,218.73,5.26672673]
[1734268197040,2.16,218.75,218.68,2.287]
[1734268197232,2.16,218.75,218.69,25.57941752]
[1734268197435,2.16,218.75,218.7,8.83561641]
[1734268197643,2.2865,218.73,218.67,2.2871]
[1734268197843,2.2865,218.73,218.68,22.97960252]
[1734268198042,2.2865,218.73,218.69,8.83830866]
[1734268198336,2.2865,218.73,218.7,8.838353]
[1734268198642,2.2865,218.73,218.69,5.40517065]
[1734268198842,2.2865,218.73,218.7,8.8377908]
[1734268199034,2.2865,218.73,218.69,5.40517065]
[1734268199242,2.2865,218.73,218.7,8.83775199]
[1734268199433,2.2865,218.73,218.69,5.40517065]
[1734268199644,2.2865,218.73,218.7,8.83724261]
[1734268199845,2.2865,218.73,218.69,5.40517065]
[1734268200038,2.2865,218.73,218.7,8.83718152]
[1734268200239,2.2865,218.73,218.69,5.40517065]
[1734268200439,2.16,218.75,218.7,8.83684321]
[1734268200635,2.16,218.75,218.71,5.26798535]
[1734268200937,2.16,218.75,218.69,5.40517065]
[1734268201135,2.2864,218.74,218.7,8.83728818]
[1734268201338,2.16,218.75,218.71,5.26826928]
[1734268201542,2.16,218.75,218.69,5.40517065]
[1734268201741,2.16,218.75,218.7,8.83814819]
[1734268201940,2.16,218.75,218.71,8.83814819]
[1734268202249,2.16,218.75,218.69,5.40517065]
[1734268202446,2.2863,218.74,218.7,8.83835961]
[1734268202646,2.2863,218.74,218.71,8.83835961]
[1734268202846,2.16,218.75,218.69,7.69197065]
[1734268203045,2.2863,218.74,218.7,8.83835258]
[1734268203240,2.2863,218.74,218.71,8.83834862]
[1734268203446,2.2863,218.74,218.69,7.69197065]
[1734268203844,2.2863,218.74,218.7,5.27060407]
[1734268204146,2.2863,218.74,218.69,5.40517065]
[1734268204346,2.2863,218.74,218.7,5.27074718]
[1734268204643,2.2863,218.74,218.69,7.69207065]
[1734268204841,2.2863,218.74,218.7,8.84109516]
[1734268205040,2.16,218.75,218.72,2.2865]
[1734268205348,2.16,218.75,218.73,8.83839692]
[1734268205648,38.88192347,218.87,218.69,5.40517065]
[1734268205846,2.16,218.86,218.74,2.2863]
[1734268206045,2.16,218.86,218.75,5.26669409]
[1734268206345,2.16,218.86,218.74,2.2863]
[1734268206346,2.2858,218.8,218.74,2.2863]
[1734268206543,2.2858,218.8,218.75,5.26445942]
[1734268206544,4.4458,218.8,218.75,5.26445942]
[1734268206742,2.2858,218.8,218.76,3.56627731]
[1734268207045,4.4458,218.8,218.74,2.2863]
[1734268207246,4.4458,218.8,218.75,8.83071862]
[1734268207247,2.2858,218.79,218.75,8.83071862]
[1734268207444,2.16,218.8,218.76,8.83082286]
[1734268207645,2.16,218.8,218.74,2.2863]
[1734268207846,4.4457,218.8,218.75,8.83093087]
[1734268208045,2.16,218.8,218.76,5.26457483]
[1734268208240,2.16,218.8,218.76,2.2861]
[1734268208947,4.4456,218.81,218.76,2.2861]
[1734268209146,2.16,218.81,218.77,5.26379386]
[1734268209347,2.16,218.81,218.77,2.286]
[1734268210048,2.16,218.82,218.73,2.16]
[1734268210249,2.16,218.86,218.74,30.08294954]
[1734268210440,52.34,218.9,218.75,25.56184954]
[1734268210645,2.2851,218.86,218.76,25.56184954]
[1734268210844,2.2851,218.86,218.77,25.56184954]
[1734268211046,2.16,218.89,218.78,22.95592771]
[1734268211246,2.16,218.89,218.79,8.82968219]
[1734268211443,2.16,218.89,218.8,8.82874092]
[1734268211742,2.16,218.89,218.81,5.26393969]
[1734268211942,2.16,218.89,218.74,9.06970922]
[1734268212144,2.285,218.87,218.81,2.2856]
[1734268212341,38.87191023,218.93,218.82,5.26093565]
[1734268212548,38.87191023,218.93,218.83,5.26034371]
[1734268212746,2.2848,218.89,218.78,2.16]
[1734268212940,2.2848,218.89,218.79,25.5437367]
[1734268213146,2.2848,218.89,218.8,25.5437367]
[1734268213346,2.2848,218.89,218.81,25.54014594]
[1734268213650,2.2848,218.89,218.82,30.86274594]
[1734268213850,38.87191023,218.93,218.83,8.82326922]
[1734268214048,2.16,218.92,218.84,5.26061666]
[1734268214349,2.16,218.92,218.82,3.0372]
[1734268214544,2.2849,218.88,218.83,8.8158283]
[1734268214747,2.2849,218.88,218.84,5.25620924]
[1734268214946,2.2849,218.88,218.82,3.0372]
[1734268215148,2.2849,218.88,218.83,8.81565839]
[1734268215346,2.2849,218.88,218.82,3.0372]
[1734268215547,2.2849,218.88,218.83,8.81254169]
[1734268215843,2.2849,218.88,218.84,5.25449723]
[1734268216050,2.2849,218.88,218.82,5.3227]
[1734268216240,2.2849,218.88,218.83,8.81038799]
[1734268216446,2.2849,218.88,218.84,5.25296143]
[1734268216646,2.16,218.89,218.83,2.2854]
[1734268216847,2.16,218.89,218.84,5.25287905]
[1734268217044,2.2848,218.9,218.83,2.2854]
[1734268217248,4.4445,218.92,218.84,8.80907983]
[1734268217450,4.4445,218.92,218.85,8.805772]
[1734268217751,4.4445,218.92,218.86,5.25024007]
[1734268217953,4.4445,218.92,218.83,1.45]
[1734268218145,1.4178,219.02,218.84,17.20499893]
[1734268218457,2.16,219.01,218.85,8.80518175]
[1734268218751,2.2844,218.94,218.87,2.2849]
[1734268218950,2.16,218.93,218.87,2.2849]
[1734268220457,4.4444,218.93,218.87,2.2849]
[1734268221352,2.16,218.93,218.83,7.04098583]
[1734268222151,2.16,218.93,218.82,3.0372]
[1734268222753,2.2852,218.85,218.82,3.0372]
[1734268222952,2.16,218.86,218.82,3.0372]
[1734268223156,2.16,218.88,218.82,3.0372]
[1734268223456,4.4449,218.88,218.82,5.3226]
[1734268225255,91.17605983,219.03,218.82,5.3226]
[1734268225256,2.16,219.08,218.83,2.16]
[1734268225459,2.16,219.07,218.84,17.58435948]
[1734268225655,2.2833,219.04,218.91,2.2845]
[1734268225850,2.16,219.06,218.85,24.69342968]
[1734268225851,2.16,219.06,218.92,13.82797376]
[1734268226051,2.16,219.06,218.93,7.39412551]
[1734268226255,2.16,219.06,218.93,2.16]
[1734268226461,2.2833,219.03,218.93,2.16]
[1734268227560,2.2833,219.03,218.96,2.2839]
[1734268227756,2.16,219.05,218.93,2.16]
[1734268227957,2.2832,219.04,218.98,2.2838]
[1734268233864,2.2832,219.04,218.98,7.83809736]
[1734268234065,2.16,219.06,218.94,1.5493]
[1734268234066,2.2837,219.0,218.94,1.5493]
[1734268235167,2.2837,219.0,218.96,5.3927071]
[1734268235566,2.2837,219.0,218.92,2.8887]
[1734268235567,2.14,219.01,218.92,2.8887]
[1734268235768,2.14,219.0,218.92,2.8887]
[1734268235969,2.14,218.99,218.92,2.8887]
[1734268236163,2.14,218.98,218.92,2.8887]
[1734268237473,2.2841,218.96,218.92,2.8887]
[1734268237875,2.2841,218.96,218.92,8.25825516]
[1734268238774,2.2841,218.95,218.92,8.25825516]
[1734268241578,2.2841,218.95,218.92,2.8887]
[1734268242683,2.284,218.96,218.92,2.8887]
[1734268242981,2.14,218.98,218.92,2.8887]
[1734268243475,2.284,218.97,218.92,5.1731]
[1734268243680,2.284,218.97,218.92,2.8887]
[1734268244181,2.2841,218.96,218.92,2.8887]
[1734268244383,2.14,218.98,218.92,2.8887]
[1734268244682,2.2841,218.95,218.92,2.8887]
[1734268251184,2.284,218.96,218.93,5.21881074]
[1734268251384,2.284,218.96,218.92,2.8887]
[1734268252284,2.284,218.96,218.93,8.75986348]
[1734268252487,2.284,218.96,218.92,5.1731]
[1734268252783,2.284,218.96,218.93,8.76075626]
[1734268252979,2.284,218.96,218.92,2.8887]
[1734268253185,2.284,218.96,218.93,8.76057118]
[1734268253485,2.284,218.96,218.92,2.8887]
[1734268253778,2.284,218.96,218.93,8.7637214]
[1734268253978,2.284,218.96,218.92,2.8887]
[1734268254184,2.284,218.96,218.93,8.76154955]
[1734268254387,2.284,218.96,218.94,5.22399141]
[1734268254581,2.284,218.96,218.92,2.8887]
[1734268254779,2.284,218.96,218.93,8.76602777]
[1734268254981,2.284,218.96,218.94,5.22665912]
[1734268255288,2.284,218.96,218.92,2.8887]
[1734268255584,2.284,218.96,218.93,8.77018294]
[1734268255786,2.284,218.96,218.94,3.54104499]
[1734268255987,2.284,218.96,218.92,2.8887]
[1734268256188,2.284,218.96,218.93,5.22918941]
[1734268256485,2.284,218.96,218.92,2.8887]
[1734268256686,2.284,218.96,218.93,5.23109676]
[1734268256887,2.284,218.96,218.92,2.8887]
[1734268257184,2.284,218.96,218.93,8.77464909]
[1734268257488,2.284,218.96,218.92,2.8887]
[1734268257682,2.284,218.96,218.93,8.77702673]
[1734268257883,2.284,218.96,218.92,2.8887]
[1734268258187,2.284,218.96,218.93,8.77699396]
[1734268258388,2.284,218.96,218.92,2.8887]
[1734268258579,2.284,218.96,218.93,5.23554076]
[1734268258783,2.284,218.96,218.92,2.8887]
[1734268258980,2.284,218.96,218.93,5.23555964]
[1734268259189,2.284,218.96,218.92,2.8887]
[1734268259388,2.284,218.96,218.93,5.23680921]
[1734268259588,2.284,218.96,218.92,2.8887]
[1734268259790,2.284,218.96,218.93,5.23720749]
[1734268260092,2.284,218.96,218.92,2.8887]
[1734268260488,2.284,218.96,218.93,3.54720124]
[1734268260690,2.284,218.96,218.92,2.8887]
[1734268260983,2.284,218.96,218.93,8.78489557]
[1734268261189,2.284,218.96,218.92,2.8887]
[1734268261390,2.284,218.96,218.93,5.23904733]
[1734268261587,2.284,218.96,218.92,2.8887]
[1734268261787,2.284,218.96,218.93,5.23901154]
[1734268261986,2.284,218.96,218.92,2.8887]
[1734268262187,2.284,218.96,218.93,5.23872439]
[1734268262391,2.284,218.96,218.92,2.8887]
[1734268262592,2.284,218.96,218.93,5.23987901]
[1734268262784,2.284,218.96,218.92,2.8887]
[1734268262983,2.284,218.96,218.93,8.78824483]
[1734268263190,2.284,218.96,218.92,2.8887]
[1734268263389,2.284,218.96,218.93,3.54889481]
[1734268263593,2.284,218.96,218.92,2.8887]
[1734268263789,2.284,218.96,218.93,8.78954084]
[1734268263985,2.14,218.98,218.94,5.24067827]
[1734268264287,2.14,218.98,218.83,2.14]
[1734268264483,1.4403,218.97,218.86,25.45964348]
[1734268264687,1.4403,218.97,218.87,25.45964348]
[1734268264688,2.2843,218.94,218.87,25.45964348]
[1734268264882,2.14,218.93,218.88,17.18405662]
[1734268265086,2.14,218.92,218.89,8.79439147]
[1734268265287,4.4246,218.92,218.83,2.14]
[1734268265494,4.4246,218.92,218.84,25.4667083]
[1734268265686,4.4246,218.92,218.85,25.4667083]
[1734268265893,2.14,218.92,218.86,22.46303112]
[1734268266093,2.14,218.95,218.87,25.46973339]
[1734268266289,2.14,218.95,218.88,17.19083651]
[1734268266493,2.14,218.95,218.89,8.79787534]
[1734268266695,2.2844,218.93,218.9,5.24680961]
[1734268266888,2.2844,218.93,218.88,2.2848]
[1734268267095,2.14,218.95,218.89,8.79995936]
[1734268267295,2.14,218.95,218.9,5.24684316]
[1734268267493,2.14,218.95,218.86,5.3862589]
[1734268267689,2.14,218.95,218.87,25.49377485]
[1734268267894,2.14,218.95,218.88,8.80615532]
[1734268268196,2.14,218.95,218.89,8.80615532]
[1734268268393,2.14,218.95,218.9,5.25049109]
[1734268268595,2.14,218.95,218.86,5.3862589]
[1734268268795,2.2846,218.91,218.87,25.50535734]
[1734268268995,2.2846,218.91,218.88,13.65760422]
[1734268269298,2.2846,218.91,218.89,25.5114409]
[1734268269498,2.2846,218.91,218.9,8.8099099]
[1734268271100,2.2846,218.91,218.9,5.2529247]
[1734268271298,2.2846,218.91,218.86,7.6712589]
[1734268271500,2.2846,218.91,218.87,25.51489181]
[1734268271700,2.2846,218.91,218.88,17.22120168]
[1734268271900,2.2846,218.91,218.89,8.8134179]
[1734268272197,2.14,218.93,218.81,4.53745097]
[1734268272403,2.14,218.93,218.82,11.85578502]
[1734268272702,2.14,218.93,218.83,8.81589169]
[1734268272997,2.2852,218.85,218.84,5.25628018]
[1734268273202,4.4252,218.85,218.84,5.25628018]
[1734268273396,4.4252,218.85,218.79,2.2857]
[1734268273593,4.4252,218.85,218.81,22.91715396]
[1734268273795,4.4252,218.85,218.82,8.81428998]
[1734268273993,4.4252,218.85,218.83,8.81428998]
[1734268274194,4.4252,218.85,218.8,5.2834]
[1734268274397,4.4252,218.85,218.81,22.91544221]
[1734268274606,4.4252,218.85,218.82,8.81363162]
[1734268274901,4.4252,218.85,218.83,5.25485583]
[1734268275104,4.4252,218.85,218.81,5.4268939]
[1734268275292,4.4252,218.85,218.82,8.81418278]
[1734268275495,4.4252,218.85,218.83,5.2545628]
[1734268275697,4.4252,218.85,218.81,5.4268939]
[1734268275901,4.4252,218.85,218.82,8.81319148]
[1734268276198,4.4252,218.85,218.83,8.81401423]
[1734268276503,4.4252,218.85,218.81,5.4268939]
[1734268276703,4.4252,218.85,218.82,8.81274277]
[1734268276905,4.4252,218.85,218.83,5.25437237]
[1734268277104,4.4252,218.85,218.81,5.4268939]
[1734268277299,2.2853,218.84,218.82,8.81295262]
[1734268277506,2.2853,218.84,218.83,5.25449618]
[1734268277708,2.14,218.85,218.8,2.9977]
[1734268278005,2.14,218.85,218.81,8.81519369]
[1734268278201,2.14,218.85,218.8,2.9977]
[1734268278405,2.14,218.85,218.81,8.81457934]
[1734268278703,2.14,218.85,218.8,2.9977]
[1734268278704,2.2855,218.82,218.8,2.9977]
[1734268278909,2.14,218.85,218.81,8.81641308]
[1734268279209,2.14,218.85,218.82,5.2570807]
[1734268279407,2.14,218.85,218.74,9.86219492]
[1734268279602,2.2858,218.79,218.75,25.5226355]
[1734268279907,2.2858,218.79,218.76,25.5226355]
[1734268280100,2.2858,218.79,218.74,9.86219492]
[1734268280101,2.2858,218.79,218.77,25.5226355]
[1734268280302,2.2858,218.79,218.78,25.5226355]
[1734268281803,2.2858,218.79,218.78,14.51167435]
[1734268282013,2.2858,218.79,218.78,25.51607919]
[1734268282407,2.2858,218.79,218.78,22.91588297]
[1734268282904,2.2858,218.79,218.78,17.22173629]
[1734268283101,2.2858,218.79,218.78,8.81380114]
[1734268284608,4.4257,218.8,218.78,8.81380114]
[1734268284804,4.4257,218.8,218.79,5.25495947]
[1734268285213,4.4257,218.8,218.79,5.25265155]
[1734268286109,4.4257,218.8,218.75,5.58704034]
[1734268286310,4.4257,218.8,218.76,22.90359898]
[1734268286510,4.4257,218.8,218.77,8.80907653]
[1734268286710,4.4257,218.8,218.78,5.25213845]
[1734268287011,4.4257,218.8,218.75,5.58704034]
[1734268287208,2.2856,218.81,218.76,22.90418865]
[1734268287407,2.14,218.82,218.77,17.21399239]
[1734268287610,2.14,218.85,218.78,8.80984304]
[1734268287805,2.14,218.85,218.79,8.80984304]
[1734268288011,4.4253,218.85,218.79,2.2857]
[1734268288305,5.57057073,218.91,218.79,2.2857]
[1734268288510,2.14,218.9,218.8,5.25052153]
[1734268288710,2.14,218.9,218.79,2.2857]
[1734268289109,2.14,218.9,218.8,5.25050471]
[1734268289304,2.14,218.9,218.82,2.2855]
[1734268289503,2.14,218.89,218.82,2.2855]
[1734268289704,2.14,218.88,218.82,2.2855]
[1734268290008,4.425,218.87,218.82,2.2855]
[1734268290204,2.285,218.87,218.82,2.2855]
[1734268293517,2.2851,218.86,218.75,7.72704034]
[1734268293705,2.2851,218.86,218.76,25.48928975]
[1734268294012,2.2851,218.86,218.77,25.48928975]
[1734268294217,2.2851,218.86,218.78,25.48928975]
[1734268294513,2.2851,218.86,218.79,25.48928975]
[1734268294712,2.2851,218.86,218.8,3.55505253]
[1734268294911,2.2851,218.86,218.81,3.55505253]
[1734268295116,2.2851,218.86,218.75,7.72704034]
[1734268295412,2.2851,218.86,218.81,2.2856]
[1734268296205,2.2851,218.86,218.82,5.25176053]
[1734268296406,2.2851,218.86,218.81,2.2856]
[1734268296610,2.2851,218.86,218.82,5.2517632]
[1734268296809,2.2851,218.86,218.81,2.2856]
[1734268297010,2.2852,218.85,218.82,8.80771236]
[1734268297214,2.14,218.88,218.75,7.72704034]
[1734268297414,2.14,218.88,218.76,25.50306562]
[1734268297614,2.14,218.88,218.77,25.50306562]
[1734268297815,2.2852,218.85,218.8,2.2857]
[1734268298009,2.2852,218.85,218.81,8.81000315]
[1734268298213,2.2852,218.85,218.82,5.25302493]
[1734268298419,2.2852,218.85,218.8,2.2857]
[1734268298614,2.2852,218.85,218.81,3.55877701]
[1734268298817,2.2852,218.85,218.82,5.2549702]
[1734268299017,2.2852,218.85,218.8,2.2857]
[1734268299218,2.2852,218.85,218.81,8.81393914]
[1734268299419,2.2852,218.85,218.82,5.25508567]
[1734268299620,2.2852,218.85,218.8,2.2857]
[1734268299820,2.2852,218.85,218.81,8.81597627]
[1734268300019,2.2852,218.85,218.82,8.81597627]
[1734268300321,2.2852,218.85,218.8,2.2857]
[1734268300620,2.2852,218.85,218.81,8.81706874]
[1734268300918,2.2852,218.85,218.82,8.81706874]
[1734268301121,2.2852,218.85,218.8,2.2857]
[1734268301319,2.2852,218.85,218.83,5.25771503]
[1734268301520,2.2852,218.85,218.8,2.2857]
[1734268301720,2.2852,218.85,218.81,25.53130355]
[1734268301917,2.2852,218.85,218.82,8.81902087]
[1734268302119,2.2852,218.85,218.83,8.81902087]
[1734268302321,2.2852,218.85,218.84,5.25811392]
[1734268303422,2.2852,218.85,218.8,2.2857]
[1734268303722,2.14,218.88,218.81,25.54576307]
[1734268303922,2.14,218.88,218.82,8.82402369]
[1734268304222,2.14,218.88,218.79,5.42409689]
[1734268304223,2.2856,218.82,218.79,5.42409689]
[1734268304419,2.2856,218.82,218.8,11.87175665]
[1734268304620,2.2856,218.82,218.81,17.24863339]
[1734268304823,2.2856,218.82,218.81,8.82754903]
[1734268305523,2.2854,218.83,218.81,8.82754903]
[1734268305715,2.2854,218.83,218.82,8.82819315]
[1734268306219,2.2854,218.83,218.82,17.24915673]
[1734268306520,2.2854,218.83,218.82,8.82819315]
[1734268306824,2.2854,218.83,218.82,17.24987486]
[1734268307530,2.2854,218.83,218.82,17.25195567]